Cogmind - Beta 16.1 @@@ ROGUE MODE // 2026.02.12 @ 20:03:23 Player: Skergy Result: Self-destructed Performance ------------- Evolutions (5) 2500 Regions Visited (4) 800 Robots Destroyed (23) 115 Value Destroyed (308) 308 Prototype IDs (15) 300 Alien Tech Used (0) 0 Bonus (1061) 1061 TOTAL SCORE: 5084 Bonus ------- Follower Combat Kills 261 Registered with UFD 300 Met Optimus in HQ 500 Cogmind --------- Core Integrity 813/1000 Matter 177/300 Energy 311/370 System Corruption 18% Temperature Cool (0) Movement Walking (180) Ox1 Location -5/Factory Parts ------- > --- POWER (2) -------- Improved Deuterium Engine Meta Core > --- PROPULSION (3+1) - Carbon-fiber Leg Thunder Leg > --- UTILITY (6+1) ---- Scrap Suit (+) Large Storage Unit IFF Parser Advanced ECM Suite Makeshift System Shield > --- WEAPON (6) ------- (None) > --- INVENTORY (15) --- Field Propulsion Drive Improved Coolant Injector Weight Redist. System Hardened Medium Armor Plating Hacking Suite EM Pulse Gun Overtuned Barrage Gun Grenade Launcher Heavy Rocket Launcher Improved Remote Datajack Mining Laser DRS Beacon (Ready) Peak State ------------ > --- POWER ------------ Improved Deuterium Engine Meta Core > --- PROPULSION ------- Light Treads Carbon-fiber Leg Thunder Leg > --- UTILITY ---------- Scrap Suit Large Storage Unit IFF Parser Seismic Detector Advanced ECM Suite Makeshift System Shield > --- WEAPON ----------- Improved Proton Missile Launcher 1B-0RG's Assimilator Remote Datajack > --- INVENTORY -------- Field Propulsion Drive Improved Coolant Injector Weight Redist. System Hardened Medium Armor Plating Hacking Suite EM Pulse Gun Overtuned Barrage Gun Grenade Launcher Heavy Rocket Launcher Improved Remote Datajack Mining Laser DRS Beacon [Rating: 128] Favorites ----------- Power Meta Core Engine Light Ion Engine Power Core Meta Core Propulsion Light Treads Treads Light Treads Leg Thunder Leg Flight Unit Field Propulsion Drive Utility Large Storage Unit Device Scrap Suit Storage Large Storage Unit Hackware Makeshift System Shield Weapon EM Pulse Gun Energy Gun EM Pulse Gun Ballistic Gun Overtuned Barrage Gun Launcher Heavy Rocket Launcher Special Weapon Mining Laser Special Melee Weapon 1B-0RG's Assimilator Build | -11 -10 -10 -7 -5 ------- Run | Yrd Mat Sub Scr Fac Slots Evolved 10 | . . . . 10 Power 1 | . . . . 1 Propulsion 1 | . . . . 1 Utility 4 | . . . . 4 Weapon 4 | . . . . 4 Parts Attached 33 | 8 3 4 5 13 Power 4 | 1 . 1 1 1 Engine 3 | 1 . 1 . 1 Core 1 | . . . 1 . Reactor . | . . . . . Propulsion 7 | 2 . 1 . 4 Treads 3 | 2 . 1 . . Leg 3 | . . . . 3 Wheel . | . . . . . Hover . | . . . . . Flight 1 | . . . . 1 Utility 12 | 2 3 1 1 5 Device 8 | 1 1 1 1 4 Storage 3 | 1 2 . . . Processor . | . . . . . Hackware 1 | . . . . 1 Protection . | . . . . . Artifact . | . . . . . Weapon 10 | 3 . 1 3 3 Energy Gun 3 | 2 . . 1 . Energy Cannon . | . . . . . Ballistic Gun 2 | 1 . . . 1 Ballistic Cannon . | . . . . . Launcher 2 | . . . 1 1 Special Weapon 2 | . . 1 1 . Impact Weapon . | . . . . . Slashing Weapon . | . . . . . Piercing Weapon . | . . . . . Special Melee Weapon 1 | . . . . 1 Unidentified Prototypes 1 | . . . . 1 Corrupted Parts 1 | . . . . 1 System Corruption 9 | . . . . 9 Parts Lost 10 | . 2 2 . 6 Power 1 | . . 1 . . Propulsion 3 | . . 1 . 2 Utility 2 | . 1 . . 1 Weapon 4 | . 1 . . 3 Highest Loss Streak 6 | . 1 1 . 6 To Critical Strikes 1 | . . . . 1 Average Backups 9 | 4 9 9 9 8 Power . | . 1 . . . Propulsion 1 | 1 2 2 . . Utility 3 | . 3 3 3 2 Weapon 2 | 1 2 2 2 4 Tool/Special . | . . . . . Unused Backups 38 | 1 . 1 25 11 Power 1 | . . . 1 . Propulsion 11 | . . 1 9 1 Utility 15 | 1 . . 7 7 Weapon 9 | . . . 7 2 Tool/Special 2 | . . . 1 1 Average Slot Usage (%) 82 | . 93 96 81 68 Engine 6 | . 14 14 4 4 Core 5 | . . . 6 5 Treads 21 | . 28 26 22 8 Device 13 | . 12 14 11 19 Storage 10 | . 14 14 11 5 Energy Gun 11 | . 23 14 12 . Launcher 2 | . . . 2 2 Special Weapon 7 | . . 9 8 4 Peak Build Rating 128 | 9 10 17 44 128 Average Rating 41 | 6 8 13 31 123 On Entrance 15 | . 9 7 17 43 Avg Prop Armor Cover (%) 4 | . . . . 4 Naked Turns . | . . . . . Heaviest Build 111 | 13 27 28 42 111 Greatest Support 40 | 40 40 40 40 40 Greatest Overweight (x) 5 | . . 1 1 5 Average Overweight (x) . | . . . . 2 Largest Inventory Capacity 15 | 8 15 15 15 15 Average Capacity 14 | 7 10 15 15 15 Most Carried 15 | 7 10 15 15 15 Average Carried 12 | 4 9 12 14 9 Final Capacity 15 | 8 15 15 15 15 Final Carried 15 | 6 10 15 15 12 Scrap Suit Usage (%) 56 | . . . 63 99 Parts Cannibalized 5 | . . . 4 1 Class Distribution -------------------- 66% | Mutant 18% | Gunner 14% | Derelict-Mutant Dominant Class ---------------- Mutant | -10/Materials Mutant | -10/Subcaves Mutant | -7/Scraptown Derelict-Mutant | -5/Factory Resources | -11 -10 -10 -7 -5 ----------- Run | Yrd Mat Sub Scr Fac Matter Collected 842 | 280 20 77 50 415 Remotely . | . . . . . Salvage Created 527 | 203 173 109 . 42 Parts 49 | 17 16 15 . 1 Haulers Intercepted . | . . . . . Recyclers Shooed 2 | . . . . 2 Parts Field Recycled . | . . . . . Retrieved Matter . | . . . . . Parts Self-Destructed 14 | . . 14 . . Prevented 1 | . . 1 . . Parts Restored . | . . . . . Kills | -11 -10 -10 -7 -5 ------- Run | Yrd Mat Sub Scr Fac Combat Hostiles Destroyed 12 | . 5 7 . . Guns 9 | . 2 7 . . AOE 3 | . 3 . . . Classes Destroyed 7 | 2 4 . . 1 Builder 1 | . . . . 1 Tunneler 5 | 5 . . . . Recycler 1 | 1 . . . . Operator 1 | . 1 . . . Watcher 3 | . 3 . . . Swarmer 10 | . 3 7 . . Grunt 2 | . 2 . . . Best Kill Streak 7 | 2 3 7 . 1 Combat Bots Only 7 | . 3 7 . . Max Kills in Single Turn 2 | 1 2 2 . 1 Gunslinging 1 | . . 1 . . Exploded 2 | . 2 . . . Melee . | . . . . . Uniques/NPCs Destroyed . | . . . . . Combat | -11 -10 -10 -7 -5 -------- Run | Yrd Mat Sub Scr Fac Hostile Shots Fired 151 | . 42 29 . 80 Missed 37 | . 12 7 . 18 Hits 114 | . 30 22 . 62 Projectile 114 | . 30 22 . 62 Critical Strikes 4 | . . . . 4 Part Disruptions 2 | . . . . 2 Damage Taken 1889 | . 438 231 . 1220 Core 261 | . 58 16 . 187 Absorbed by Shields . | . . . . . Regen/Repaired (Parts) 107 | . . . 31 76 Core Remaining (%) 85 | 100 . . 70 . Volleys Fired 63 | 13 33 11 . 6 Largest 2 | 2 2 2 . 1 Hottest 100 | 90 90 100 . 43 Shots Fired 99 | 21 52 20 . 6 Gun 94 | 21 52 18 . 3 Cannon . | . . . . . Launcher 1 | . . . . 1 Special 4 | . . 2 . 2 Kinetic 12 | . . 9 . 3 Thermal 35 | 13 20 2 . . Explosive . | . . . . . Electromagnetic 50 | 8 32 9 . 1 Robot Hit Streak 10 | 4 10 3 . 4 Robot Miss Streak 4 | 1 4 3 . 1 Penetration Max . | . . . . . Secondary Targets 1 | . . 1 . . Max Gunslinging Chain 1 | . . 1 . . Shots Hit Robots 50 | 14 22 10 . 4 Core Hits 32 | 6 13 7 . 6 Critical Kills . | . . . . . Critical Parts Destroyed 1 | . . . . 1 Critical Strikes 2 | 1 . . . 1 Burn 1 | 1 . . . . Destroy 1 | . . . . 1 Melee Attacks . | . . . . . Impact . | . . . . . Slashing . | . . . . . Piercing . | . . . . . Sneak Attacks . | . . . . . Combat Hostiles . | . . . . . Follow-up Attacks . | . . . . . Damage Inflicted 1014 | 190 541 127 . 156 Guns 692 | 190 332 127 . 43 Cannons . | . . . . . Explosions 318 | . 205 . . 113 Melee . | . . . . . Ramming 4 | . 4 . . . Kinetic 113 | . . 70 . 43 Thermal 416 | 113 303 . . . Explosive . | . . . . . Electromagnetic 481 | 77 234 57 . 113 Impact . | . . . . . Slashing . | . . . . . Piercing . | . . . . . Highest Corruption 17 | . . . . 17 Average Corruption 3 | . . . . 3 Corruption Purged . | . . . . . Corruption Blocked . | . . . . . Effects 7 | . . . . 7 Message Errors 1 | . . . . 1 Matter Fused 3 | . . . . 3 Heat Flow Errors 2 | . . . . 2 Energy Discharges 1 | . . . . 1 Overload Shots . | . . . . . Overflow Damage . | . . . . . Projectiles . | . . . . . Explosions . | . . . . . Melee . | . . . . . Knockbacks . | . . . . . Impact . | . . . . . Kinetic . | . . . . . Secondary . | . . . . . Self-Inflicted Damage 145 | . 117 . . 28 Shots 4 | . 3 . . 1 Rammed 1 | . 1 . . . Targets Rammed 1 | . 1 . . . Kicked . | . . . . . Crushed . | . . . . . Highest Temperature 168 | 150 168 . . 147 Average Temperature 51 | 47 52 . . 53 Received Heat Transfer 210 | . 129 . . 81 Siege Activations . | . . . . . Martial Activations . | . . . . . Shielding Activations . | . . . . . Robots Disrupted 1 | . 1 . . . Combat Hostiles 1 | . 1 . . . Robots Corrupted . | . . . . . Combat Hostiles . | . . . . . Parts Fried . | . . . . . Impact Corruptions . | . . . . . Robots Melted . | . . . . . Combat Hostiles . | . . . . . Parts Melted 1 | 1 . . . . Heat Transferred 1003 | 407 596 . . . Parts Sabotaged . | . . . . . Parts Stolen . | . . . . . Parts Stripped . | . . . . . Power Chain Reactions 4 | . 4 . . . Alert | -11 -10 -10 -7 -5 ------- Run | Yrd Mat Sub Scr Fac Maximum Alert Level . | . . . . . Low Security (%) 100 | 100 100 . . 100 Level 1 . | . . . . . Level 2 . | . . . . . Level 3 . | . . . . . Level 4 . | . . . . . Level 5 . | . . . . . High Security . | . . . . . Max Security . | . . . . . Peak Influence 105 | 10 105 . . 77 Initial . | . . . . . Average 19 | . 44 . . 7 Influence Increases 611 | 30 289 150 . 142 Destroy 0b10 Robot/C 380 | . 160 140 . 80 Destroy 0b10 Robot/NC 55 | 30 20 . . 5 Destroy Leader 76 | . 46 10 . 20 Allied During Kill 25 | . 4 . . 21 Successful Hack 22 | . 6 . . 16 Disable Machine 45 | . 45 . . . Destroy Structure 8 | . 8 . . . Influence Decreases 611 | 30 289 150 . 142 Time Decay 541 | 30 262 140 . 109 Lost Part 30 | . 20 10 . . Lost Ally 40 | . 7 . . 33 Squads Dispatched 5 | . 3 . . 2 Investigation . | . . . . . Extermination 1 | . . . . 1 Reinforcement 4 | . 3 . . 1 Assault . | . . . . . Garrison . | . . . . . Intercept . | . . . . . Searches Triggered . | . . . . . Construction Impeded . | . . . . . Haulers Reinforced . | . . . . . Active Scanning Responses . | . . . . . Cargo Convoy Interrupts 1 | . . . . 1 Stealth | -11 -10 -10 -7 -5 --------- Run | Yrd Mat Sub Scr Fac Distress Signals 3 | . 2 . . 1 Communications Jammed . | . . . . . Distress Signals . | . . . . . Times Spotted 48 | . 17 7 . 24 Peak Tracking Total 14 | . 3 4 . 14 Tactical Retreats 2 | . . . . 2 ECM-based Alert Blocks 4 | . . . . 4 Traps | -11 -10 -10 -7 -5 ------- Run | Yrd Mat Sub Scr Fac Traps Triggered 4 | . . 1 . 3 Indirectly 1 | . . . . 1 Trap Hack Attempts . | . . . . . Triggered . | . . . . . Disarmed . | . . . . . Reprogrammed . | . . . . . Reused . | . . . . . Traps Extracted . | . . . . . Installed . | . . . . . Triggered . | . . . . . Machines | -11 -10 -10 -7 -5 ---------- Run | Yrd Mat Sub Scr Fac Machines Disabled 4 | . 3 1 . . Max in Single Turn 1 | . 1 1 . . Machines Repaired . | . . . . . Machines Dismantled . | . . . . . Machines Sabotaged . | . . . . . Overloaded Fab Kills . | . . . . . Hacking | -11 -10 -10 -7 -5 --------- Run | Yrd Mat Sub Scr Fac Machines Accessed 14 | . 6 1 4 3 Terminals 7 | . 5 . . 2 Fabricators . | . . . . . Repair Stations . | . . . . . Recycling Units 2 | . 1 . . 1 Scanalyzers . | . . . . . Garrison Access . | . . . . . Total Hacks 44 | . 14 1 15 14 Successful 31 | . 9 1 15 6 Failed 13 | . 5 . . 8 Catastrophic 1 | . . . . 1 Database Lockouts . | . . . . . Manual 26 | . 12 . 1 13 Terminals 17 | . 9 . . 8 Fabricators . | . . . . . Repair Stations . | . . . . . Recycling Units 11 | . 5 . . 6 Scanalyzers . | . . . . . Garrison Access . | . . . . . Terminal Hacks 17 | . . 1 15 1 Record 16 | . . . 15 1 Proto ID Catalog 1 | . . 1 . . Fabricator Hacks . | . . . . . Repair Station Hacks . | . . . . . Recycling Unit Hacks 2 | . 2 . . . Process 1 | . 1 . . . Report Inventory 1 | . 1 . . . Scanalyzer . | . . . . . Garrison Access Hacks . | . . . . . Unauthorized Hacks 12 | . 7 . . 5 Terminals 6 | . 4 . . 2 Botnet 4 | . 3 . . 1 Operators 2 | . 1 . . 1 Fabricators . | . . . . . Repair Stations . | . . . . . Recycling Units 6 | . 3 . . 3 Reject 2 | . 1 . . 1 Recyclers 2 | . 1 . . 1 Mask 2 | . 1 . . 1 Scanalyzers . | . . . . . Garrison Access . | . . . . . Data Cores Recovered . | . . . . . Used . | . . . . . Hacking Detections 9 | . 6 . . 3 Full Trace Events . | . . . . . Feedback Events . | . . . . . Feedback Blocked . | . . . . . Robot Schematics Acquired . | . . . . . Robots Built . | . . . . . Authchips . | . . . . . Time . | . . . . . Total Robot Build Rating . | . . . . . Part Schematics Acquired . | . . . . . Parts Built . | . . . . . Authchips . | . . . . . Time . | . . . . . Total Part Build Rating . | . . . . . Part Studies Acquired . | . . . . . Parts Repaired . | . . . . . Time . | . . . . . Parts Recycled . | . . . . . Recycled Matter 3 | . 3 . . . Retrieved Matter . | . . . . . Retrieved Components . | . . . . . Parts Scanalyzed . | . . . . . Part Schematics Acquired . | . . . . . Parts Damaged . | . . . . . Bothacking | -11 -10 -10 -7 -5 ------------ Run | Yrd Mat Sub Scr Fac Used RIF Installer . | . . . . . Robots Hacked 1 | . . . . 1 Non-combat . | . . . . . Combat . | . . . . . Robot Hacks Applied . | . . . . . Manual 1 | . . . . 1 Relay Couplers Released . | . . . . . Fabnet Peak Effective % . | . . . . . Robots Rewired 1 | . 1 . . . Allies Hacked 5 | . . . . 5 Hacks Repelled 1 | . . . . 1 Allies | -11 -10 -10 -7 -5 -------- Run | Yrd Mat Sub Scr Fac Total Allies 2 | . 1 . 1 . Largest Group 1 | . 1 . 1 1 Highest-Rated Group 96 | . 16 . 96 96 Highest-Rated Ally 96 | . 16 . 96 96 Initial UFD Resources 38 | . . . . 38 Total Orders 6 | . . . 4 2 STAY 2 | . . . 2 . FOLLOW 2 | . . . 2 . AID 1 | . . . . 1 PICKUP 1 | . . . . 1 Ally Attacks 38 | . 11 . . 27 Total Damage 827 | . 164 . . 663 Kills 8 | . 3 . . 5 Allies Corrupted 1 | . . . . 1 Allies Melted 1 | . . . . 1 Borg Created 5 | . . . . 5 Largest Collective 3 | . . . . 3 Intel | -11 -10 -10 -7 -5 ------- Run | Yrd Mat Sub Scr Fac Active Infowar (turns) 4315 | 78 632 641 1800 1164 IFF 1164 | . . . . 1164 Terrain 482 | 78 404 . . . Seismic 3556 | . . 601 1800 1155 ECM 1424 | . 228 40 . 1156 Robot Analysis Total . | . . . . . Derelict Logs Recovered 2 | . . . 2 . Drone Launches . | . . . . . Drone Recoveries . | . . . . . Exploration | -11 -10 -10 -7 -5 ------------- Run | Yrd Mat Sub Scr Fac Turns Passed 7723 | 222 687 641 5009 1164 Spaces Moved 3872 | 109 324 359 2753 327 Core 4 | 4 . . . . Treads 3720 | 105 324 359 2753 179 Legs 148 | . . . . 148 Wheels . | . . . . . Hover . | . . . . . Flight . | . . . . . Fastest Speed 50 | 50 160 160 160 240 Average Speed 187 | 155 160 164 177 330 Slowest Speed 560 | 160 160 240 250 560 Overloaded Moves . | . . . . . Propulsion Burnouts . | . . . . . Robots Hopped . | . . . . . Potential Cave-ins . | . . . . . Cave-ins Triggered . | . . . . . Exploration Rate (%) 42 | 7 69 33 91 10 Regions Visited 4 Branch Regions 2 Pre-discovered Areas 1 | . . . 1 . Known Exits Taken . | . . . . . Unknown Exits Taken 4 | 1 1 1 1 . Scrap Searched 9 | . . 3 6 . Spaces Dug . | . . . . . Terrain Destroyed 6 | . 6 . . . Melee . | . . . . . Projectile . | . . . . . AOE 6 | . 6 . . . Terrain Rammed . | . . . . . Walls Destroyed . | . . . . . Machines Disabled . | . . . . . Actions | -11 -10 -10 -7 -5 --------- Run | Yrd Mat Sub Scr Fac Total 4249 | 138 439 384 2893 395 Wait 151 | . 73 . 48 30 Move 3868 | 108 323 358 2752 327 Hop . | . . . . . Pick Up 66 | 7 3 6 45 5 Fast Attach 14 | 7 . 1 1 5 Attach 14 | 1 1 2 3 7 Detach 4 | 1 . . . 3 Swap 8 | . 2 2 1 3 Drop 48 | 1 . 4 43 . Fire 63 | 13 33 11 . 6 Melee . | . . . . . Ram . | . . . . . Kick . | . . . . . Crush 1 | . 1 . . . Escape Stasis . | . . . . . Rewire 7 | . 3 . . 4 Trap . | . . . . . Miscellaneous 5 | . . . . 5 Route ------- -11/Scrapyard -10/Materials (discovered 3 exits: [*Mat x2] / *Sub) -10/Subcaves (discovered 2 exits: [*Mat] / *Scr) -7/Scraptown (discovered 2 exits: *Fac x2) -5/Factory History --------- Turn | Location | Event 6 | -11/Scrapyard | Discovered new exit (range 14) 223 | -11/Scrapyard | Entered Materials 310 | -10/Materials | Build established: Mutant 535 | -10/Materials | Discovered new exit (range 10) 613 | -10/Materials | Discovered new exit (range 15) 882 | -10/Materials | Discovered new exit (range 6) 910 | -10/Materials | Entered Subcaves 911 | -10/Subcaves | Approached by a straggling Scientist 946 | -10/Subcaves | Discovered new exit (range 10) 1003 | -10/Subcaves | A swath of the cavern ceiling suddenly collapsed 1083 | -10/Subcaves | Destroyed 7 combat bots 1131 | -10/Subcaves | Visited 4L-MR0's lab 1144 | -10/Subcaves | Found Prototype Special Melee Weapon 1153 | -10/Subcaves | Found Meta Core 1551 | -10/Subcaves | Entered Scraptown 1676 | -7/Scraptown | Heard Great Nut preacher, LISTEN AND RECITE! 1686 | -7/Scraptown | Received an X-ray algorithm 1699 | -7/Scraptown | Ran an X-ray algorithm 1964 | -7/Scraptown | Discovered new exit (range 13) 2031 | -7/Scraptown | Scanned Subdweller tech in exchange for log data 2036 | -7/Scraptown | Learned location of Quarantine (-3) 2086 | -7/Scraptown | Visited Comm Corps 2169 | -7/Scraptown | Visited UFD Registry 2169 | -7/Scraptown | Registered with UFD as "Wavetube" 2188 | -7/Scraptown | Visited Cyclists 2211 | -7/Scraptown | Entered Cyclist Reading Room 2246 | -7/Scraptown | Visited IN-MT5's Study 2318 | -7/Scraptown | Visited Supply Room 2353 | -7/Scraptown | Visited Shadow of the Wyrm 2366 | -7/Scraptown | Visited Spacefarers 2451 | -7/Scraptown | Visited TADAMA 2708 | -7/Scraptown | Visited LU-1G1's Boring Crew 2777 | -7/Scraptown | Visited Observation Area 2843 | -7/Scraptown | Visited Abandonware Association 2860 | -7/Scraptown | Learned abandonware demo "TRNCOAT.EXE" 2937 | -7/Scraptown | Delivered Scrap Shield to a Scientist 3078 | -7/Scraptown | Visited Chapter 10 3105 | -7/Scraptown | Visited Derelict Rescue Squad 3124 | -7/Scraptown | Found DRS Beacon 3152 | -7/Scraptown | Visited Scrap Suit Storage 3186 | -7/Scraptown | Attached Meta Core, gained temporary slots: Propulsion, Utility, Weapon 3186 | -7/Scraptown | Found Scrap Suit 3380 | -7/Scraptown | Visited Supply Room 3436 | -7/Scraptown | Visited DA-N13 Charitable Foundation 3464 | -7/Scraptown | Found DCF Scrap (30 items) 3545 | -7/Scraptown | Visited Botcube Research 3552 | -7/Scraptown | Found Lrg. Botcube 3721 | -7/Scraptown | Found Scrap Suit 3826 | -7/Scraptown | Visited Curators Association 5055 | -7/Scraptown | Lrg. Botcube activated 5091 | -7/Scraptown | Lrg. Botcube completed mutation into legged form, armed with 3 guns, 1 launcher. 5468 | -7/Scraptown | Build established: Gunner 6408 | -7/Scraptown | Met Optimus 6408 | -7/Scraptown | Accepted into 0bPrime 6553 | -7/Scraptown | Discovered new exit (range 3) 6560 | -7/Scraptown | Entered Factory 6560 | -5/Factory | Accompanied by 1 ally 6560 | -5/Factory | Evolved 10 slots: Power x1, Propulsion x1, Utility x4, Weapon x4 6565 | -5/Factory | Identified 1B-0RG's Assimilator 6857 | -5/Factory | Build established: Derelict-Mutant 6872 | -5/Factory | Assimilating Engineer 6a into Collective. 7151 | -5/Factory | Assimilating Engineer 6b into Collective. 7223 | -5/Factory | Assimilating Serf 6a into Collective. 7402 | -5/Factory | Assimilating Sage 6a into Collective. 7582 | -5/Factory | Assimilating Processor 6a into Collective. 7611 | -5/Factory | Allied Derelicts emerged from ambush trap array 7692 | -5/Factory | Cargo convoy interrupted 7721 | -5/Factory | System corruption reached 10% 7724 | -5/Factory | Self-destructed Last Messages --------------- 07716_ R-10 Processor collects Corrupted Imp. Heat Sink. 07720_ Penetrated by Slug. 07720_ Critical hit (Burn: +37). 07720_ Acquired Corrupted Carbon-fiber Leg. 07720_ Integrated Corrupted Carbon-fiber Leg (+9). 07720_ K-01 Serf collects debris. 07720_ R-10 Processor collects Corrupted Beamcaster. 07721_ Carbon-fiber Leg destroyed. 07722_ P-70 Sage resets X-67 Chaingunner, system corruption cleaned. 07723_ Slug penetrates P-70 Sage. 07723_ Penetrated by Slug. 07723_ Seismic Detector destroyed. 07723_ R-10 Processor collects Antigrav System. 07723_ P-70 Sage resets R-10 Processor, system corruption cleaned. 07724_ 1B-0RG's Assimilator destroyed. Map ----- +----------------------------------------------------+ | ?????????????????????????????????????????????????? | | ?????????????????????????????????????????????????? | | ?????????????????????????????????????????????????? | | ?????????????????????????????????????????????????? | | ?????????????????????????????????????????????????? | | ?????????????????????????????????????????????????? | | ?????????????????????????????????????????????????? | | ?????????????????????????????????????????????????? | | ?????????????????????????????????????????????????? | | ?????????????????????????????????????????????????? | | ?????????????????????????????????????????????????? | | ?????????????????????????????????????????????????? | | ??????????????????????????? ?????????????????????? | | ???????????????????????????+#????????????????????? | | ??????????????????????????? #????????????????????? | | ??????????????????????????# #????????????????????? | | ?????????????????????????? ????????????????????? | | ??????????????????????????% ?????????????????????? | | ??????????????????????????% ?????????????????????? | | ??????????????????????????A#?????????????????????? | | ?????????????????######### #?????????????????????? | | ?????????????????Rk i i#?????????????????????? | | ???????????????????# ^ x#?????????????????????? | | ???????????????????# h"%g *#?????????????????????? | | ???????????????????#pphpxxg#?????????????????????? | | ???????????????????# %%k@!#?????????????????????? | | ???????????????????# R *#?????????????????????? | | ???????????????????# [%#?????????????????????? | | ???????????????????#######!#?????????????????????? | | ?????????????????????????#%#?????????????????????? | | ?????????????????????????#=#?????????????????????? | | ????????????????????######+###???????????????????? | | ????????????????????# =[=[ #???????????????????? | | ????????????????????# """ #???????????????????? | | ????????????????????# """ #???????????????????? | | ????????????????????# """ #???????????????????? | | ????????????????????# * #???????????????????? | | ????????????????????#! #???????????????????? | | ????????????????????# "T" #???????????????????? | | ????????????????????# """ #???????????????????? | | ????????????????##### #???????????????????? | | ????????????????# #####+####???????????????????? | | ????????????????# " #??????????????????????? | | ????????????????# #######??????????????????????? | | ????????????????## ##????????????????????????????? | | ?????????????????# #?????????????????????????????? | | ?????????????????# #?????????????????????????????? | | ?????????????????# #?????????????????????????????? | | ?????????????????# #?#####???????????????????????? | | ?????????#########R### #???????????????????????? | +----------------------------------------------------+ Best States ------------- Heat Dissipation 40 Energy Generation 28 Energy Capacity 370 Matter Stores 300 Matter Capacity 300 Sight Range 16 Terrain Scan Range 16 Terrain Scan Density 10 ECM Strength 2 Additional Mass Support 6 Evasion (%) 40 Recoil Reduction 2 Defensive Hacking 11 Item Schematics ----------------- None Robot Schematics ------------------ None Fabricated ------------ Nothing Repaired ---------- Nothing Studied --------- None Alien Tech Used ----------------- None Achievements -------------- Executioner Hackathon I, Locutus Challenges ------------ None Game ------ Seed SuperdenseMultinovaPick Manual? 0 Play Time 01:24:05 Cumulative 120.1 hours Start 2026.02.12 @ 11:26:14 End 2026.02.12 @ 20:03:23 Sessions 3 Manual Loads 0 Difficulty Rogue Special Mode None Game No. 129 Rogue 129 Adventurer 0 Explorer 0 Win Type - Total 4 Types 4/0/0/0/0/0/0/0/0/0 Lore% 66 Gallery% 52 Achievement% 40 Wizard Run 0 Options --------- Layout 1 ASCII 0 Keyboard 1 Movement Vi Keybinds 0 Fullscreen 2 Font 24/Terminus Map View 50x35 Zoom Use 0% Tactical HUD 1 Map Filters NONE Filters NONE Steam 1 RUN: b68f01ce-c50c-456f-982e-5619df68ecc1